Cogmind - Beta 15 @@@ ROGUE MODE // 2025.09.17 @ 21:14:47 Player: BlobtheGreat Result: Destroyed by P-70 Sage with Tesla Rifle Performance ------------- Evolutions (5) 2500 Regions Visited (20) 4000 Robots Destroyed (168) 840 Value Destroyed (4452) 4452 Prototype IDs (45) 900 Alien Tech Used (0) 0 Bonus (1340) 1340 TOTAL SCORE: 14032 Bonus ------- High Alert Combat Kills 42 Follower Combat Kills 198 Registered with UFD 300 Met Optimus in HQ 500 Met Data Miner 300 Cogmind --------- Core Integrity 0/1000 Matter 211/300 Energy 100/100 System Corruption 9% Temperature Cool (0) Movement Core (50) Location -5/Factory Parts ------- > --- POWER (1) -------- (None) > --- PROPULSION (5) --- (None) > --- UTILITY (9) ------ Enhanced Optical Array Improved Hacking Suite Advanced System Shield > --- WEAPON (2) ------- (None) > --- INVENTORY (5) ---- Combat Linear Gravjet Expert System Authchip [Propulsion] Authchip [Armor] A0-MCA's Component Scanner Peak State ------------ > --- POWER ------------ Cold Fusion Reactor > --- PROPULSION ------- Cooled Cesium-ion Thruster Cooled Cesium-ion Thruster Cooled Nuclear Pulse Thruster Impulse Thruster Array > --- UTILITY ---------- Structural Scanner Enhanced Optical Array Advanced Sensor Array Experimental Signal Interpreter Layered Light Armor Plating Improved Hacking Suite Advanced Hacking Suite Advanced System Shield Authchip [Armor] > --- WEAPON ----------- Improved KE Penetrator Power Sword > --- INVENTORY -------- Expert System ECM Suite A0-MCA's Component Scanner Long-range Missile Launcher [Rating: 99] Favorites ----------- Power Deuterium Engine Engine Deuterium Engine Power Core Light Nuclear Core Reactor Cold Fusion Reactor Propulsion Light Treads Treads Light Treads Flight Unit Cooled Cesium-ion Thruster Utility Improved Targeting Computer Device Structural Scanner Storage Huge Storage Unit Processor Improved Targeting Computer Hackware Hacking Suite Protection Medium Reactive Plating Weapon Minigun Energy Gun Medium Laser Energy Cannon Advanced Beam Cannon Ballistic Gun Minigun Ballistic Cannon Light Cannon Launcher Long-range Missile Launcher Special Weapon Remote Datajack Slashing Weapon Katana Build | -11 -10 -10 -9 -9 -9 -8 -8 -8 -8 -8 -6 -6 -6 -6 -6 -6 -5 -5 -5 -5 ------- Run | Yrd Mat Min Mat Min Exi Min Mat Sto Rec Scr Fac Was Fac Low Low Dat Pro Fac Was Fac Slots Evolved 10 | . . . 2 . . . 2 . . . 4 . . . . . . 2 . . Power . | . . . . . . . . . . . . . . . . . . . . . Propulsion 3 | . . . 1 . . . 1 . . . 1 . . . . . . . . . Utility 7 | . . . 1 . . . 1 . . . 3 . . . . . . 2 . . Weapon . | . . . . . . . . . . . . . . . . . . . . . Parts Attached 118 | 8 8 1 25 2 . 2 7 14 . 10 23 . 4 . . . 1 10 . 3 Power 10 | 1 1 1 . . . . 1 1 . 3 1 . 1 . . . . . . . Engine 6 | 1 1 1 . . . . 1 1 . 1 . . . . . . . . . . Core 3 | . . . . . . . . . . 2 1 . . . . . . . . . Reactor 1 | . . . . . . . . . . . . . 1 . . . . . . . Propulsion 40 | 2 . . 13 . . . 4 8 . 3 7 . 1 . . . . 2 . . Treads 26 | 2 . . 12 . . . 4 8 . . . . . . . . . . . . Leg . | . . . . . . . . . . . . . . . . . . . . . Wheel . | . . . . . . . . . . . . . . . . . . . . . Hover . | . . . . . . . . . . . . . . . . . . . . . Flight 14 | . . . 1 . . . . . . 3 7 . 1 . . . . 2 . . Utility 41 | 2 2 . 8 2 . 1 1 2 . 4 8 . 1 . . . 1 7 . 2 Device 9 | 1 . . 3 . . . . . . . 2 . . . . . . 1 . 2 Storage 5 | 1 1 . 1 . . . . 1 . . 1 . . . . . . . . . Processor 5 | . . . . 1 . . 1 . . . 2 . . . . . . 1 . . Hackware 11 | . . . . . . . . . . 3 3 . 1 . . . . 4 . . Protection 11 | . 1 . 4 1 . 1 . 1 . 1 . . . . . . 1 1 . . Artifact . | . . . . . . . . . . . . . . . . . . . . . Weapon 27 | 3 5 . 4 . . 1 1 3 . . 7 . 1 . . . . 1 . 1 Energy Gun 1 | 1 . . . . . . . . . . . . . . . . . . . . Energy Cannon 1 | . 1 . . . . . . . . . . . . . . . . . . . Ballistic Gun 13 | 2 2 . 3 . . 1 1 1 . . 1 . . . . . . 1 . 1 Ballistic Cannon 1 | . 1 . . . . . . . . . . . . . . . . . . . Launcher 6 | . . . 1 . . . . 1 . . 4 . . . . . . . . . Special Weapon 1 | . . . . . . . . . . . 1 . . . . . . . . . Impact Weapon . | . . . . . . . . . . . . . . . . . . . . . Slashing Weapon 4 | . 1 . . . . . . 1 . . 1 . 1 . . . . . . . Piercing Weapon . | . . . . . . . . . . . . . . . . . . . . . Special Melee Weapon . | . . . . . . . . . . . . . . . . . . . . . Unidentified Prototypes 11 | . 1 . 2 . . . 1 1 . . 3 . 1 . . . . . . 2 Parts Lost 27 | . 1 . 1 . . 2 5 3 . . . . 1 . . . . 2 . 12 Power 3 | . 1 . . . . . 1 . . . . . . . . . . . . 1 Propulsion 9 | . . . . . . . 3 1 . . . . . . . . . 1 . 4 Utility 11 | . . . . . . 1 1 1 . . . . 1 . . . . 1 . 6 Weapon 4 | . . . 1 . . 1 . 1 . . . . . . . . . . . 1 Highest Loss Streak 9 | . 1 . 1 . . 2 1 1 . . . . 1 . . . . 1 . 9 To Critical Strikes . | . . . . . . . . . . . . . . . . . . . . . Average Backups 17 | 4 12 14 17 23 24 23 23 23 22 21 5 5 4 5 5 5 5 4 4 5 Power . | . . . . . 1 1 1 2 1 . . 1 . . . . . . . . Propulsion 4 | 3 4 2 5 8 8 8 7 6 5 4 . . . . . . . . . 1 Utility 8 | . 3 5 6 10 10 9 9 10 11 12 3 3 3 4 4 4 4 3 4 4 Weapon 3 | . 4 6 5 4 5 4 4 4 4 3 . . . . 1 1 1 1 . . Tool/Special . | . . . . . . . . . . . . . . . . . . . . . Unused Backups 74 | . 6 3 7 . . . 2 2 3 18 19 2 1 . . . . 6 . 5 Power 2 | . . . . . . . . . 1 . . 1 . . . . . . . . Propulsion 13 | . 2 2 . . . . . 1 2 2 3 . . . . . . . . 1 Utility 38 | . . 1 1 . . . 1 1 . 13 11 1 1 . . . . 4 . 4 Weapon 20 | . 4 . 6 . . . 1 . . 3 5 . . . . . . 1 . . Tool/Special 1 | . . . . . . . . . . . . . . . . . . 1 . . Average Slot Usage (%) 95 | . 99 100 99 100 100 100 95 98 100 87 99 100 98 93 93 93 93 92 94 69 Engine 7 | . 14 14 11 11 11 11 9 9 9 3 . . . . . . . . . . Core 1 | . . . . . . . . . . 5 6 6 3 . . . . . . . Treads 25 | . 27 28 32 33 33 33 33 35 36 27 . . . . . . . . . . Flight 5 | . . . . . . . . . . 1 32 33 32 26 26 26 26 22 23 16 Device 5 | . 10 14 11 3 . . 1 . . . 12 13 13 13 13 13 10 13 17 11 Storage 8 | . 14 14 11 11 11 11 9 9 9 8 . . . . . . . . . . Processor 9 | . . . . 7 11 11 15 18 18 7 12 13 13 13 13 13 13 13 11 8 Hackware 6 | . . . . . . . . . . 14 20 20 19 20 20 20 20 17 17 15 Protection 6 | . 3 . 10 11 11 11 9 9 9 4 . . . . . . 2 4 5 3 Ballistic Gun 14 | . 26 28 21 22 22 22 18 16 18 8 . . . . . . . 2 . . Slashing Weapon 2 | . . . . . . . . . . 4 5 6 6 6 6 6 6 5 5 4 Peak Build Rating 99 | 7 12 14 27 23 23 24 31 31 32 37 73 74 83 83 82 82 85 99 97 99 Average Rating 33 | 5 8 12 20 22 23 23 28 30 31 28 55 73 76 82 82 82 83 93 96 71 On Entrance 47 | . 7 11 14 21 23 23 24 30 31 32 24 73 74 83 82 82 82 85 91 97 Naked Turns . | . . . . . . . . . . . . . . . . . . . . . Heaviest Build 115 | 12 32 36 100 104 102 103 105 115 115 115 21 20 25 25 25 25 28 31 31 31 Greatest Support 82 | 40 40 40 60 60 60 60 80 82 82 82 30 30 42 34 34 34 34 43 35 35 Greatest Overweight (x) 4 | . . . 1 1 1 1 1 1 1 4 . . . . . . . 1 . . Average Overweight (x) . | . . . . 1 1 1 1 1 1 1 . . . . . . . . . . Largest Inventory Capacity 25 | 8 15 15 25 25 25 25 25 25 25 25 25 5 5 5 5 5 5 5 5 5 Average Capacity 19 | 7 14 15 20 25 25 25 25 25 25 24 5 5 5 5 5 5 5 5 5 5 Most Carried 25 | 7 15 15 24 25 25 25 25 25 24 25 20 5 5 5 5 5 5 5 5 5 Average Carried 18 | 4 12 14 18 24 25 24 24 24 23 21 4 4 4 5 5 5 5 4 4 5 Final Capacity 25 | 8 15 15 25 25 25 25 25 25 25 25 5 5 5 5 5 5 5 5 5 5 Final Carried 25 | 7 15 15 23 25 25 24 25 24 24 18 5 5 5 5 5 5 5 5 5 5 Class Distribution -------------------- 41% | Mutant 31% | Scavenger-Mutant 13% | Hacker-Scout 8% | Hacker-Mutant 3% | Hacker-Ninja Dominant Class ---------------- Mutant | -10/Materials Mutant | -10/Mines Mutant | -9/Materials Mutant | -9/Mines Mutant | -9/Exiles Mutant | -8/Mines Scavenger-Mutant | -8/Materials Mutant | -8/Storage Scavenger-Mutant | -8/Recycling Scavenger-Mutant | -8/Scraptown Hacker-Scout | -6/Factory Hacker-Scout | -6/Waste Hacker-Scout | -6/Factory Hacker-Scout | -6/Lower Caves Hacker-Scout | -6/Lower Caves Hacker-Scout | -6/Data Miner Hacker-Scout | -5/Proximity Caves Hacker-Scout | -5/Factory Hacker-Ninja | -5/Waste Hacker-Sprinter | -5/Factory Resources | -11 -10 -10 -9 -9 -9 -8 -8 -8 -8 -8 -6 -6 -6 -6 -6 -6 -5 -5 -5 -5 ----------- Run | Yrd Mat Min Mat Min Exi Min Mat Sto Rec Scr Fac Was Fac Low Low Dat Pro Fac Was Fac Matter Collected 4600 | 295 386 18 1148 153 . 162 633 581 37 180 418 . . 105 15 . 37 290 . 142 Remotely . | . . . . . . . . . . . . . . . . . . . . . Salvage Created 5735 | 173 561 24 1662 232 . 205 785 732 52 . 702 . 45 57 71 . 129 225 . 80 Parts 361 | 14 37 3 114 14 . 11 43 60 1 . 26 . 4 . 3 . 10 15 . 6 Haulers Intercepted 14 | . 2 . 5 . . . 1 1 . . 4 . . . . . . 1 . . Recyclers Shooed 8 | 2 1 . 2 . . . 2 1 . . . . . . . . . . . . Parts Field Recycled . | . . . . . . . . . . . . . . . . . . . . . Retrieved Matter . | . . . . . . . . . . . . . . . . . . . . . Parts Self-Destructed 13 | . . . . . . . . . . . . . . . . . 13 . . . Prevented . | . . . . . . . . . . . . . . . . . . . . . Kills | -11 -10 -10 -9 -9 -9 -8 -8 -8 -8 -8 -6 -6 -6 -6 -6 -6 -5 -5 -5 -5 ------- Run | Yrd Mat Min Mat Min Exi Min Mat Sto Rec Scr Fac Was Fac Low Low Dat Pro Fac Was Fac Combat Hostiles Destroyed 111 | . 14 . 24 7 . 4 13 17 1 . 8 . 3 . . . 7 10 . 3 Melee 1 | . . . . . . . . . . . . . . . . . . 1 . . Guns 70 | . 12 . 22 5 . 4 13 13 1 . . . . . . . . . . . Cannons 2 | . 2 . . . . . . . . . . . . . . . . . . . AOE 38 | . . . 2 2 . . . 4 . . 8 . 3 . . . 7 9 . 3 Classes Destroyed 14 | 3 5 . 3 . . 1 . 1 . . . . . . 1 . . . . . Worker 9 | 1 1 1 2 1 . . 2 . . . . . 1 . . . . . . . Builder 5 | . . . 3 . . . 1 1 . . . . . . . . . . . . Tunneler 5 | 5 . . . . . . . . . . . . . . . . . . . . Hauler 14 | . 2 . 5 . . . 1 1 . . 4 . . . . . . 1 . . Recycler 5 | 1 . . 2 . . . 1 . . . 1 . . . . . . . . . Mechanic 2 | . . . . . . . . 2 . . . . . . . . . . . . Operator 4 | . 1 . 1 . . . 1 . . . 1 . . . . . . . . . Watcher 13 | . 2 . 4 . . . 3 . . . 1 . . . . . . 2 . 1 Swarmer 47 | . 6 . . 2 . . 3 7 . . 8 . 3 . . . 5 10 . 3 Grunt 43 | . 8 . 15 3 . 2 7 6 . . . . . . . . 2 . . . Duelist 3 | . . . 1 1 . 1 . . . . . . . . . . . . . . Sentry 16 | . . . 8 1 . . 2 4 1 . . . . . . . . . . . Hunter 2 | . . . . . . 1 1 . . . . . . . . . . . . . Decomposer 3 | . . . . . . . . . . . . . . 3 . . . . . . Samaritan 2 | . . . . . . . . . . . . . . . 2 . . . . . Best Kill Streak 7 | 3 6 1 5 3 . 3 3 5 1 . 4 . 4 . . . 7 5 . 4 Combat Bots Only 7 | . 6 . 2 3 . 3 3 5 1 . 4 . 3 . . . 7 5 . 3 Max Kills in Single Turn 5 | 1 2 1 2 3 . 1 1 5 1 . 4 . 3 1 1 . 3 3 . 3 Gunslinging 1 | . 1 . . . . . . . . . . . . . . . . . . . Exploded 4 | . . . 2 2 . . . 4 . . 4 . 2 . . . 3 3 . 3 Melee 1 | . . . . . . . . . . . . . . . . . . 1 . . Uniques/NPCs Destroyed . | . . . . . . . . . . . . . . . . . . . . . Combat | -11 -10 -10 -9 -9 -9 -8 -8 -8 -8 -8 -6 -6 -6 -6 -6 -6 -5 -5 -5 -5 -------- Run | Yrd Mat Min Mat Min Exi Min Mat Sto Rec Scr Fac Was Fac Low Low Dat Pro Fac Was Fac Hostile Shots Fired 589 | . 58 . 100 24 . 35 83 57 10 . 27 . 3 1 . . 10 57 . 124 Missed 188 | . 15 . 22 8 . 12 22 19 3 . 15 . 1 1 . . 5 27 . 38 Hits 401 | . 43 . 78 16 . 23 61 38 7 . 12 . 2 . . . 5 30 . 86 Melee 3 | . . . 2 . . 1 . . . . . . . . . . . . . . Projectile 398 | . 43 . 76 16 . 22 61 38 7 . 12 . 2 . . . 5 30 . 86 AOE 2 | . . . . . . . . 2 . . . . . . . . . . . . Critical Strikes 5 | . . . 1 . . . . . . . . . . . . . . . . 4 Damage Taken 6252 | . 489 . 1101 214 . 365 856 610 90 . 186 . 32 . . . 112 452 . 1745 Core 1583 | . 146 . 112 50 . 43 116 41 . . 27 . 32 . . . 15 56 . 945 Absorbed by Shields . | . . . . . . . . . . . . . . . . . . . . . Ignored by Resistances 42 | . . . . . . . . 12 30 . . . . . . . . . . . Regen/Repaired (Parts) 774 | . 53 . . . . . . 198 . . 83 . 126 . . . . 238 . 76 Core Remaining (%) 70 | 100 . 41 . . . 48 . . . 71 . . . . . . 91 . . . Volleys Fired 412 | 33 75 . 109 15 . 20 76 50 5 . 8 . 3 1 . . 10 6 . 1 Largest 2 | 2 2 . 2 2 . 2 2 2 2 . 1 . 1 1 . . 1 1 . 1 Hottest 53 | 50 50 . 50 50 . 50 50 53 53 . 43 . 43 43 . . 43 43 . 43 Shots Fired 755 | 38 150 . 217 29 . 40 152 90 10 . 8 . 3 1 . . 10 6 . 1 Gun 715 | 38 140 . 216 28 . 40 152 89 10 . . . . . . . . 2 . . Cannon 10 | . 10 . . . . . . . . . . . . . . . . . . . Launcher 26 | . . . 1 1 . . . 1 . . 4 . 3 1 . . 10 4 . 1 Special 4 | . . . . . . . . . . . 4 . . . . . . . . . Kinetic 697 | 10 150 . 216 28 . 40 152 89 10 . . . . . . . . 2 . . Thermal 28 | 28 . . . . . . . . . . . . . . . . . . . . Explosive 26 | . . . 1 1 . . . 1 . . 4 . 3 1 . . 10 4 . 1 Electromagnetic . | . . . . . . . . . . . . . . . . . . . . . Robot Hit Streak 22 | 7 8 . 14 10 . 12 14 22 9 . 10 . 1 . . . 1 . . . Robot Miss Streak 7 | 2 7 . 7 2 . 3 2 2 1 . 2 . 2 . . . 1 1 . . Penetration Max . | . . . . . . . . . . . . . . . . . . . . . Secondary Targets 6 | . 2 . 2 . . . 1 1 . . . . . . . . . . . . Max Gunslinging Chain 1 | . 1 . 1 . . . 1 1 . . . . . . . . . . . . Shots Hit Robots 518 | 30 90 . 129 22 . 28 111 58 9 . 20 . 1 3 2 . 1 13 . 1 Core Hits 239 | 10 38 1 55 10 . 8 40 31 2 . 14 . 4 . 1 . 10 12 . 3 Critical Kills 1 | . 1 . . . . . . . . . . . . . . . . . . . Critical Parts Destroyed 5 | . 2 . 2 . . . 1 . . . . . . . . . . . . . Critical Strikes 10 | 1 3 . 2 . . . 1 . . . 2 . . . . . . 1 . . Burn 1 | 1 . . . . . . . . . . . . . . . . . . . . Destroy 6 | . 3 . 2 . . . 1 . . . . . . . . . . . . . Sever 3 | . . . . . . . . . . . 2 . . . . . . 1 . . Melee Attacks 206 | . 1 . . . . . . 1 . . 77 . 20 8 3 . . 90 . 6 Impact . | . . . . . . . . . . . . . . . . . . . . . Slashing 206 | . 1 . . . . . . 1 . . 77 . 20 8 3 . . 90 . 6 Piercing . | . . . . . . . . . . . . . . . . . . . . . Sneak Attacks 14 | . . . . . . . . . . . 6 . . 3 2 . . 3 . . Combat Hostiles . | . . . . . . . . . . . . . . . . . . . . . Follow-up Attacks . | . . . . . . . . . . . . . . . . . . . . . Damage Inflicted 13371 | 352 929 29 2529 604 . 490 1873 1260 239 . 1468 . 236 253 197 . 792 1583 . 537 Guns 7407 | 347 829 . 2366 384 . 461 1843 1012 165 . . . . . . . . . . . Cannons 80 | . 80 . . . . . . . . . . . . . . . . . . . Explosions 3570 | . . . 129 207 . . . 217 . . 608 . 236 . . . 792 902 . 479 Melee 2049 | . . . . . . . . . . . 860 . . 253 197 . . 681 . 58 Ramming 265 | 5 20 29 34 13 . 29 30 31 74 . . . . . . . . . . . Kinetic 7189 | 49 909 . 2366 384 . 461 1843 1012 165 . . . . . . . . . . . Thermal 298 | 298 . . . . . . . . . . . . . . . . . . . . Explosive 3570 | . . . 129 207 . . . 217 . . 608 . 236 . . . 792 902 . 479 Electromagnetic . | . . . . . . . . . . . . . . . . . . . . . Impact . | . . . . . . . . . . . . . . . . . . . . . Slashing 2049 | . . . . . . . . . . . 860 . . 253 197 . . 681 . 58 Piercing . | . . . . . . . . . . . . . . . . . . . . . Highest Corruption 10 | . . . . . . . . . . . . . . . . . . . 10 10 Average Corruption 5 | . . . . . . . . . . . . . . . . . . . 10 5 Corruption Purged 7 | . . . . . . . . . . . . . . . . . . . . 7 Corruption Blocked . | . . . . . . . . . . . . . . . . . . . . . Effects 13 | . . . . . . . . . . . . . . . . . . . 2 11 Message Errors 2 | . . . . . . . . . . . . . . . . . . . . 2 Matter Fused 1 | . . . . . . . . . . . . . . . . . . . . 1 Heat Flow Errors 2 | . . . . . . . . . . . . . . . . . . . 1 1 Energy Discharges 3 | . . . . . . . . . . . . . . . . . . . . 3 Data Loss (major) 2 | . . . . . . . . . . . . . . . . . . . . 2 Alerts 2 | . . . . . . . . . . . . . . . . . . . . 2 Misdirections 1 | . . . . . . . . . . . . . . . . . . . 1 . Overload Shots . | . . . . . . . . . . . . . . . . . . . . . Overflow Damage 681 | . . . . 4 . . . . . . 115 . . 230 58 . 38 91 . 145 Projectiles . | . . . . . . . . . . . . . . . . . . . . . Explosions 288 | . . . . 4 . . . . . . 62 . . . . . 38 62 . 122 Melee 393 | . . . . . . . . . . . 53 . . 230 58 . . 29 . 23 Knockbacks 3 | . 1 . . . . 1 . . 1 . . . . . . . . . . . Impact 2 | . . . . . . 1 . . 1 . . . . . . . . . . . Kinetic 1 | . 1 . . . . . . . . . . . . . . . . . . . Secondary . | . . . . . . . . . . . . . . . . . . . . . Self-Inflicted Damage 376 | . . . . . . . . . . . . . . . . . 31 . . 345 Shots 5 | . . . . . . . . . . . . . . . . . 1 . . 4 Rammed 26 | 1 3 3 7 2 . 2 1 2 5 . . . . . . . . . . . Targets Rammed 29 | 1 3 3 9 2 . 2 2 2 5 . . . . . . . . . . . Kicked . | . . . . . . . . . . . . . . . . . . . . . Crushed 3 | . . . 2 . . . 1 . . . . . . . . . . . . . Highest Temperature 172 | 120 44 . 32 55 . 124 51 26 6 . 3 . 7 . . . . . 172 155 Average Temperature 22 | 45 11 . 14 21 . 49 15 6 4 . 2 . 7 . . . . . 93 75 Received Heat Transfer 1431 | . 198 . 468 75 . 99 306 135 18 . 39 . . . . . 18 54 . 21 Siege Activations . | . . . . . . . . . . . . . . . . . . . . . Martial Activations . | . . . . . . . . . . . . . . . . . . . . . Shielding Activations . | . . . . . . . . . . . . . . . . . . . . . Robots Disrupted . | . . . . . . . . . . . . . . . . . . . . . Combat Hostiles . | . . . . . . . . . . . . . . . . . . . . . Robots Corrupted . | . . . . . . . . . . . . . . . . . . . . . Combat Hostiles . | . . . . . . . . . . . . . . . . . . . . . Parts Fried . | . . . . . . . . . . . . . . . . . . . . . Impact Corruptions . | . . . . . . . . . . . . . . . . . . . . . Robots Melted . | . . . . . . . . . . . . . . . . . . . . . Combat Hostiles . | . . . . . . . . . . . . . . . . . . . . . Parts Melted . | . . . . . . . . . . . . . . . . . . . . . Heat Transferred 962 | 962 . . . . . . . . . . . . . . . . . . . . Parts Sabotaged . | . . . . . . . . . . . . . . . . . . . . . Parts Stolen . | . . . . . . . . . . . . . . . . . . . . . Parts Stripped . | . . . . . . . . . . . . . . . . . . . . . Power Chain Reactions . | . . . . . . . . . . . . . . . . . . . . . Alert | -11 -10 -10 -9 -9 -9 -8 -8 -8 -8 -8 -6 -6 -6 -6 -6 -6 -5 -5 -5 -5 ------- Run | Yrd Mat Min Mat Min Exi Min Mat Sto Rec Scr Fac Was Fac Low Low Dat Pro Fac Was Fac Maximum Alert Level 2 | . 1 . 1 1 . . . 1 . . 2 . . . . . . 2 . 1 Low Security (%) 68 | 100 79 100 39 95 . 100 100 79 100 . 42 100 100 . . . . 5 100 16 Level 1 25 | . 20 . 60 4 . . . 20 . . 15 . . . . . . 70 . 83 Level 2 5 | . . . . . . . . . . . 42 . . . . . . 24 . . Level 3 . | . . . . . . . . . . . . . . . . . . . . . Level 4 . | . . . . . . . . . . . . . . . . . . . . . Level 5 . | . . . . . . . . . . . . . . . . . . . . . High Security . | . . . . . . . . . . . . . . . . . . . . . Max Security . | . . . . . . . . . . . . . . . . . . . . . Peak Influence 654 | 10 240 82 345 219 . 62 95 262 42 . 654 166 156 . . . . 469 163 379 Initial 166 | . . 82 . 120 . . . . 35 . . 166 102 . . . . 81 148 86 Average 135 | 1 94 11 203 111 . 5 32 131 7 . 317 160 86 . . . . 299 147 240 Influence Increases 6000 | 35 569 5 851 429 . 100 455 572 236 . 1074 . 161 . . . 150 925 15 423 Destroy 0b10 Robot/C 2700 | . 280 . 480 320 . 80 260 340 20 . 460 . 60 . . . 140 200 . 60 Destroy 0b10 Robot/NC 300 | 35 30 5 85 10 . . 45 20 . . 45 . 5 . . . . 15 . 5 Destroy Leader 656 | . 78 . 178 50 . 20 68 82 . . 122 . 10 . . . 10 26 . 12 Allied During Kill 42 | . . . . 38 . . . . . . 4 . . . . . . . . . Trap Triggered on 0b10 20 | . 10 . . . . . . . . . 10 . . . . . . . . . Successful Hack 290 | . 20 . 20 . . . 20 38 21 . 64 . 28 . . . . 71 . 8 Select Force Hacks 330 | . 60 . 30 . . . . . 180 . 60 . . . . . . . . . Disable Machine 255 | . . . 45 . . . 15 30 15 . . . . . . . . 90 . 60 Destroy Structure 492 | . 1 . 13 11 . . 2 17 . . 69 . 43 . . . . 238 . 98 Partial Spotted 330 | . . . . . . . . . . . 120 . 15 . . . . 165 15 15 Lose Combat Pursuer 585 | . 90 . . . . . 45 45 . . 120 . . . . . . 120 . 165 Influence Decreases 5771 | 35 357 217 542 735 3 100 455 480 328 . 598 330 296 11 . . 20 632 315 317 Entered New Map 1099 | . . 130 . 189 3 . . . 57 . . 310 44 5 . . . 49 275 37 Time Decay 4132 | 35 347 87 532 486 . 100 405 450 271 . 418 20 222 6 . . 20 553 20 160 Lost Part 250 | . 10 . 10 . . . 50 30 . . . . 10 . . . . 20 . 120 Lost Ally 140 | . . . . 60 . . . . . . 30 . 20 . . . . 10 20 . Purge Threat 150 | . . . . . . . . . . . 150 . . . . . . . . . Squads Dispatched 51 | . 3 1 3 . . . 1 2 . . 17 . 7 . . . . 14 . 3 Investigation 29 | . 2 1 1 . . . 1 . . . 10 . 5 . . . . 8 . 1 Extermination 8 | . . . . . . . . . . . 3 . 1 . . . . 4 . . Reinforcement 13 | . 1 . 2 . . . . 2 . . 4 . 1 . . . . 1 . 2 Assault 1 | . . . . . . . . . . . . . . . . . . 1 . . Garrison . | . . . . . . . . . . . . . . . . . . . . . Intercept . | . . . . . . . . . . . . . . . . . . . . . Searches Triggered . | . . . . . . . . . . . . . . . . . . . . . Construction Impeded 1 | . . . . . . . . 1 . . . . . . . . . . . . Haulers Reinforced 1 | . . . . . . . . . . . 1 . . . . . . . . . Active Scanning Responses . | . . . . . . . . . . . . . . . . . . . . . Cargo Convoy Interrupts . | . . . . . . . . . . . . . . . . . . . . . Stealth | -11 -10 -10 -9 -9 -9 -8 -8 -8 -8 -8 -6 -6 -6 -6 -6 -6 -5 -5 -5 -5 --------- Run | Yrd Mat Min Mat Min Exi Min Mat Sto Rec Scr Fac Was Fac Low Low Dat Pro Fac Was Fac Distress Signals 9 | . . . 2 . . . 2 1 . . 2 . . . . . . 1 . 1 Communications Jammed . | . . . . . . . . . . . . . . . . . . . . . Distress Signals . | . . . . . . . . . . . . . . . . . . . . . Times Spotted 274 | . 26 . 41 13 . 4 31 27 2 . 24 6 6 3 . . 9 52 5 25 Peak Tracking Total 9 | . 5 . 4 4 . 3 5 5 1 . 4 6 4 3 . . 5 7 5 9 Tactical Retreats 32 | . 5 . . . . . 2 2 . . 4 . . . . . 2 14 . 3 Traps | -11 -10 -10 -9 -9 -9 -8 -8 -8 -8 -8 -6 -6 -6 -6 -6 -6 -5 -5 -5 -5 ------- Run | Yrd Mat Min Mat Min Exi Min Mat Sto Rec Scr Fac Was Fac Low Low Dat Pro Fac Was Fac Traps Triggered 12 | . . . . . . . 1 . . . 1 . . . . . . 9 . 1 Indirectly . | . . . . . . . . . . . . . . . . . . . . . Trap Hack Attempts . | . . . . . . . . . . . . . . . . . . . . . Triggered . | . . . . . . . . . . . . . . . . . . . . . Disarmed 4 | . . . . . . . . . . . . . . . . . . 4 . . Reprogrammed 7 | . 1 . . . . . . . . . 6 . . . . . . . . . Reused 2 | . 1 . . . . . . . . . 1 . . . . . . . . . Traps Extracted . | . . . . . . . . . . . . . . . . . . . . . Installed . | . . . . . . . . . . . . . . . . . . . . . Triggered 2 | . 1 . . . . . . . . . 1 . . . . . . . . . Machines | -11 -10 -10 -9 -9 -9 -8 -8 -8 -8 -8 -6 -6 -6 -6 -6 -6 -5 -5 -5 -5 ---------- Run | Yrd Mat Min Mat Min Exi Min Mat Sto Rec Scr Fac Was Fac Low Low Dat Pro Fac Was Fac Machines Disabled 17 | . . . 3 . . . 1 2 1 . . . . . . . . 6 . 4 Max in Single Turn 5 | . . . 1 . . . 1 1 1 . . . . . . . . 5 . 2 Garrison Access 8 | . . . . . . . . . . . 4 . 1 . . . . 2 . 1 Machines Repaired . | . . . . . . . . . . . . . . . . . . . . . Machines Dismantled . | . . . . . . . . . . . . . . . . . . . . . Machines Sabotaged . | . . . . . . . . . . . . . . . . . . . . . Overloaded Fab Kills . | . . . . . . . . . . . . . . . . . . . . . Hacking | -11 -10 -10 -9 -9 -9 -8 -8 -8 -8 -8 -6 -6 -6 -6 -6 -6 -5 -5 -5 -5 --------- Run | Yrd Mat Min Mat Min Exi Min Mat Sto Rec Scr Fac Was Fac Low Low Dat Pro Fac Was Fac Machines Accessed 129 | . 10 2 11 . 1 . 7 6 11 1 28 . 14 . 1 4 . 29 . 4 Terminals 68 | . 7 . 10 . . . 6 4 5 . 11 . 8 . 1 . . 14 . 2 Fabricators 8 | . . . . . . . . . . . 3 . 1 . . . . 4 . . Repair Stations 7 | . 1 . . . . . . 2 . . 1 . 1 . . . . 2 . . Recycling Units 26 | . 2 . 1 . . . 1 . 6 . 7 . 3 . . . . 5 . 1 Scanalyzers 4 | . . . . . . . . . . . 2 . . . . . . 2 . . Garrison Access 8 | . . . . . . . . . . . 4 . 1 . . . . 2 . 1 Total Hacks 387 | . 24 2 29 . 7 . 19 26 26 5 68 . 49 . 2 26 . 93 . 11 Successful 243 | . 15 2 14 . 7 . 12 13 17 5 39 . 27 . 2 26 . 60 . 4 Failed 144 | . 9 . 15 . . . 7 13 9 . 29 . 22 . . . . 33 . 7 Catastrophic 21 | . . . 4 . . . . 2 1 . 1 . 6 . . . . 7 . . Database Lockouts . | . . . . . . . . . . . . . . . . . . . . . Manual 217 | . 19 . 22 . 1 . 16 14 24 . 34 . 27 . . . . 53 . 7 Terminals 237 | . 20 . 27 . . . 17 19 19 . 30 . 38 . 2 . . 57 . 8 Fabricators 29 | . . . . . . . . . . . 11 . 3 . . . . 15 . . Repair Stations 20 | . 2 . . . . . . 7 . . 2 . 2 . . . . 7 . . Recycling Units 33 | . 2 . 2 . . . 2 . 7 . 10 . 3 . . . . 6 . 1 Scanalyzers 14 | . . . . . . . . . . . 8 . . . . . . 6 . . Garrison Access 14 | . . . . . . . . . . . 7 . 3 . . . . 2 . 2 Terminal Hacks 102 | . 5 2 5 . 7 . 4 4 3 5 7 . 11 . 2 26 . 21 . . Record 26 | . . . . . 7 . . . . 5 . . . . 2 11 . 1 . . Part Schematic 21 | . . . . . . . . 1 3 . 2 . 5 . . 7 . 3 . . Robot Schematic 6 | . . . . . . . . . . . . . . . . 5 . 1 . . Robot Analysis 5 | . 2 . 1 . . . 1 1 . . . . . . . . . . . . Prototype ID Bank 8 | . . . 1 . . . . 1 . . 1 . 1 . . 3 . 1 . . Open Door 2 | . . 2 . . . . . . . . . . . . . . . . . . Branch Access Points 4 | . . . 1 . . . 1 . . . 1 . 1 . . . . . . . Emergency Access Points 1 | . . . . . . . . . . . . . . . . . . 1 . . Machine Index 1 | . . . . . . . . . . . . . . . . . . 1 . . Fabricator Index 1 | . . . . . . . . . . . . . . . . . . 1 . . Scanalyzer Index 1 | . . . . . . . . . . . . . . . . . . 1 . . Garrison Index 1 | . . . . . . . . . . . . . . . . . . 1 . . Alert Level 2 | . . . . . . . . . . . . . . . . . . 2 . . Unreport Threat 1 | . . . . . . . . . . . 1 . . . . . . . . . Locate Traps 3 | . 1 . 1 . . . . . . . . . . . . . . 1 . . Disarm Traps 1 | . . . . . . . . . . . . . . . . . . 1 . . Reprogram Traps 2 | . 1 . . . . . . . . . 1 . . . . . . . . . Recall Investigation 1 | . . . . . . . . . . . . . 1 . . . . . . . Recall Extermination 3 | . . . . . . . . . . . . . 1 . . . . 2 . . Recall Reinforcements 2 | . . . . . . . . . . . 1 . . . . . . 1 . . Hauler Manifests 6 | . . . 1 . . . 2 1 . . . . 2 . . . . . . . Registered Prototypes 1 | . . . . . . . . . . . . . . . . . . 1 . . Zone Layout 3 | . 1 . . . . . . . . . . . . . . . . 2 . . Fabricator Hacks 14 | . . . . . . . . . . . 6 . 1 . . . . 7 . . Load Schematic 10 | . . . . . . . . . . . 4 . 1 . . . . 5 . . Build 4 | . . . . . . . . . . . 2 . . . . . . 2 . . Repair Station Hacks 16 | . 2 . . . . . . 4 . . 2 . 2 . . . . 6 . . Scan Component 8 | . 1 . . . . . . 2 . . 1 . 1 . . . . 3 . . Repair 8 | . 1 . . . . . . 2 . . 1 . 1 . . . . 3 . . Recycling Unit Hacks 1 | . . . . . . . 1 . . . . . . . . . . . . . Retrieve Components 1 | . . . . . . . 1 . . . . . . . . . . . . . Scanalyzer 10 | . . . . . . . . . . . 6 . . . . . . 4 . . Insert Component 6 | . . . . . . . . . . . 4 . . . . . . 2 . . Analyze 4 | . . . . . . . . . . . 2 . . . . . . 2 . . Garrison Access Hacks 8 | . . . . . . . . . . . 4 . 1 . . . . 2 . 1 Seal Access 8 | . . . . . . . . . . . 4 . 1 . . . . 2 . 1 Unauthorized Hacks 92 | . 8 . 9 . . . 7 5 14 . 14 . 12 . . . . 20 . 3 Terminals 58 | . 6 . 8 . . . 7 5 8 . 4 . 8 . . . . 10 . 2 Assimilate 5 | . . . . . . . . . . . 1 . 2 . . . . 2 . . Botnet 17 | . 1 . 1 . . . 2 1 4 . 3 . 1 . . . . 3 . 1 Skim 36 | . 5 . 7 . . . 5 4 4 . . . 5 . . . . 5 . 1 Fabricators 9 | . . . . . . . . . . . 3 . 1 . . . . 5 . . Prioritize 3 | . . . . . . . . . . . 1 . . . . . . 2 . . Recompile 6 | . . . . . . . . . . . 2 . 1 . . . . 3 . . Repair Stations . | . . . . . . . . . . . . . . . . . . . . . Recycling Units 25 | . 2 . 1 . . . . . 6 . 7 . 3 . . . . 5 . 1 Tunnel 11 | . 2 . 1 . . . . . 6 . 2 . . . . . . . . . Fedlink 14 | . . . . . . . . . . . 5 . 3 . . . . 5 . 1 Scanalyzers . | . . . . . . . . . . . . . . . . . . . . . Garrison Access . | . . . . . . . . . . . . . . . . . . . . . Data Cores Recovered 3 | . 1 . . . . . 1 . . . 1 . . . . . . . . . Used 2 | . 1 . . . . . 1 . . . . . . . . . . . . . Hacking Detections 83 | . 8 . 10 . . . 6 5 4 . 19 . 10 . . . . 18 . 3 Full Trace Events 2 | . . . 1 . . . . . . . . . 1 . . . . . . . Feedback Events 1 | . . . . . . . . . . . . . 1 . . . . . . . Hackware Fried 1 | . . . . . . . . . . . . . 1 . . . . . . . Feedback Blocked . | . . . . . . . . . . . . . . . . . . . . . Robot Schematics Acquired 6 | . . . . . . . . . . . . . . . . 5 . 1 . . Robots Built . | . . . . . . . . . . . . . . . . . . . . . Authchips . | . . . . . . . . . . . . . . . . . . . . . Time . | . . . . . . . . . . . . . . . . . . . . . Total Robot Build Rating . | . . . . . . . . . . . . . . . . . . . . . Part Schematics Acquired 23 | . . . . . . . . 1 3 . 3 . 5 . . 7 . 4 . . Parts Built 5 | . . . . . . . . . . . 2 . . . . . . 3 . . Authchips 4 | . . . . . . . . . . . 2 . . . . . . 2 . . Time 173 | . . . . . . . . . . . 71 . . . . . . 102 . . Total Part Build Rating 26 | . . . . . . . . . . . 9 . . . . . . 17 . . Parts Repaired 8 | . 1 . . . . . . 2 . . 1 . 1 . . . . 3 . . Time 279 | . 26 . . . . . . 52 . . 19 . 95 . . . . 87 . . Parts Recycled . | . . . . . . . . . . . . . . . . . . . . . Recycled Matter . | . . . . . . . . . . . . . . . . . . . . . Retrieved Matter . | . . . . . . . . . . . . . . . . . . . . . Retrieved Components . | . . . . . . . . . . . . . . . . . . . . . Parts Scanalyzed 2 | . . . . . . . . . . . 1 . . . . . . 1 . . Part Schematics Acquired 2 | . . . . . . . . . . . 1 . . . . . . 1 . . Parts Damaged . | . . . . . . . . . . . . . . . . . . . . . Bothacking | -11 -10 -10 -9 -9 -9 -8 -8 -8 -8 -8 -6 -6 -6 -6 -6 -6 -5 -5 -5 -5 ------------ Run | Yrd Mat Min Mat Min Exi Min Mat Sto Rec Scr Fac Was Fac Low Low Dat Pro Fac Was Fac Used RIF Installer . | . . . . . . . . . . . . . . . . . . . . . Robots Hacked 2 | . . . . . . . . . . . 2 . . . . . . . . . Non-combat 1 | . . . . . . . . . . . 1 . . . . . . . . . Combat . | . . . . . . . . . . . . . . . . . . . . . Robot Hacks Applied 1 | . . . . . . . . . . . 1 . . . . . . . . . find_chute 1 | . . . . . . . . . . . 1 . . . . . . . . . Manual 1 | . . . . . . . . . . . 1 . . . . . . . . . Relay Couplers Released . | . . . . . . . . . . . . . . . . . . . . . Fabnet Peak Effective % . | . . . . . . . . . . . . . . . . . . . . . Robots Rewired . | . . . . . . . . . . . . . . . . . . . . . Allies Hacked . | . . . . . . . . . . . . . . . . . . . . . Hacks Repelled . | . . . . . . . . . . . . . . . . . . . . . Allies | -11 -10 -10 -9 -9 -9 -8 -8 -8 -8 -8 -6 -6 -6 -6 -6 -6 -5 -5 -5 -5 -------- Run | Yrd Mat Min Mat Min Exi Min Mat Sto Rec Scr Fac Was Fac Low Low Dat Pro Fac Was Fac Total Allies 10 | . . . . 3 . . . . . 1 2 . 2 . . . . 1 1 . Largest Group 3 | . . . . 3 . . . . . 1 2 . 2 . . . . 1 1 . Highest-Rated Group 103 | . . . . 40 . . . . . 79 103 . 52 . . . . 26 31 . Highest-Rated Ally 79 | . . . . 16 . . . . . 79 79 . 26 . . . . 26 31 . Total Orders . | . . . . . . . . . . . . . . . . . . . . . Ally Attacks 102 | . . . . 38 . . . . . . 50 . . . . . . . 14 . Total Damage 2717 | . . . . 384 . . . . . . 2101 . . . . . . . 232 . Kills 27 | . . . . 10 . . . . . . 17 . . . . . . . . . Allies Corrupted . | . . . . . . . . . . . . . . . . . . . . . Allies Melted . | . . . . . . . . . . . . . . . . . . . . . Intel | -11 -10 -10 -9 -9 -9 -8 -8 -8 -8 -8 -6 -6 -6 -6 -6 -6 -5 -5 -5 -5 ------- Run | Yrd Mat Min Mat Min Exi Min Mat Sto Rec Scr Fac Was Fac Low Low Dat Pro Fac Was Fac Active Infowar (turns) 6573 | 24 1042 690 698 . . . . . . . 1224 40 461 100 122 22 181 1602 40 327 Optics 1929 | . . . . . . . . . . . . . . . . . . 1562 40 327 Sensors 3703 | . . . . . . . . . . . 1154 40 461 100 122 22 181 1573 40 10 Structural 3902 | . . . . . . . . . . . 1160 40 461 100 122 22 108 1575 40 274 Seismic 2454 | 24 1042 690 698 . . . . . . . . . . . . . . . . . Machine Analysis 2958 | . . . . . . . . . . . 1224 40 461 100 122 22 181 808 . . ECM 378 | . . . . . . . . . . . . . . . . . . 336 2 40 Robot Analysis Total 5 | . 2 . 1 . . . 1 1 . . . . . . . . . . . . Derelict Logs Recovered 8 | . . 1 . 2 . . . . . . . . . 1 2 . 2 . . . Drone Launches . | . . . . . . . . . . . . . . . . . . . . . Drone Recoveries . | . . . . . . . . . . . . . . . . . . . . . Exploration | -11 -10 -10 -9 -9 -9 -8 -8 -8 -8 -8 -6 -6 -6 -6 -6 -6 -5 -5 -5 -5 ------------- Run | Yrd Mat Min Mat Min Exi Min Mat Sto Rec Scr Fac Was Fac Low Low Dat Pro Fac Was Fac Turns Passed 22125 | 237 1412 690 3258 1262 509 1263 1254 1692 1682 4740 1231 40 461 100 122 22 181 1602 40 327 Spaces Moved 17628 | 94 664 421 1438 496 213 502 421 604 700 2056 3144 142 1457 271 376 78 549 3385 109 508 Core 3 | 3 . . . . . . . . . . . . . . . . . . . . Treads 7244 | 91 664 421 1438 496 213 502 421 604 700 1694 . . . . . . . . . . Legs . | . . . . . . . . . . . . . . . . . . . . . Wheels . | . . . . . . . . . . . . . . . . . . . . . Hover . | . . . . . . . . . . . . . . . . . . . . . Flight 10381 | . . . . . . . . . . 362 3144 142 1457 271 376 78 549 3385 109 508 Fastest Speed 11 | 50 160 160 160 240 240 240 240 235 236 31 23 24 11 28 28 28 28 18 31 31 Average Speed 108 | 156 160 160 196 240 240 240 240 236 236 225 26 24 24 28 28 28 28 28 31 31 Slowest Speed 320 | 160 160 160 240 240 240 240 240 240 236 320 27 24 28 28 28 28 28 112 31 35 Overloaded Moves 3 | . . . . . . . . . . . . . 1 . . . . 2 . . Propulsion Burnouts . | . . . . . . . . . . . . . . . . . . . . . Robots Hopped 31 | . . . . . . . . . . 2 8 . 8 . . . . 12 . 1 Potential Cave-ins 3 | . . . . . . . . . . . . . . 3 . . . . . . Cave-ins Triggered . | . . . . . . . . . . . . . . . . . . . . . Exploration Rate (%) 70 | 9 97 96 93 96 58 99 34 87 95 82 74 80 27 54 65 68 67 77 98 17 Regions Visited 20 Branch Regions 11 Pre-discovered Areas 22 | . 4 1 3 . 1 . 1 . 6 . 3 . . . 1 1 1 . . . Known Exits Taken 10 | . . . 1 . . 1 1 . 1 1 . . 1 1 1 1 1 . . . Unknown Exits Taken 6 | 1 1 1 . 1 1 . . 1 . . . . . . . . . . . . Scrap Searched 24 | . . 3 . 2 . 1 . . . 8 . . . 6 2 . 2 . . . Spaces Dug 317 | . 1 . . . . . . . . . 53 . 17 5 1 . 57 147 . 36 Terrain Destroyed 533 | . 1 . 6 11 . . . 13 . . 95 . 51 24 1 . 123 147 . 61 Melee 149 | . 1 . . . . . . . . . 53 . 17 5 1 . . 68 . 4 Projectile . | . . . . . . . . . . . . . . . . . . . . . AOE 384 | . . . 6 11 . . . 13 . . 42 . 34 19 . . 123 79 . 57 Terrain Rammed . | . . . . . . . . . . . . . . . . . . . . . Walls Destroyed . | . . . . . . . . . . . . . . . . . . . . . Machines Disabled . | . . . . . . . . . . . . . . . . . . . . . Actions | -11 -10 -10 -9 -9 -9 -8 -8 -8 -8 -8 -6 -6 -6 -6 -6 -6 -5 -5 -5 -5 --------- Run | Yrd Mat Min Mat Min Exi Min Mat Sto Rec Scr Fac Was Fac Low Low Dat Pro Fac Was Fac Total 19710 | 143 884 441 1695 543 212 526 540 792 717 2187 3404 148 1521 281 387 77 563 3870 114 665 Wait 943 | . 96 7 67 18 . . 23 104 2 . 103 2 32 . 9 . 4 332 4 140 Move 17550 | 93 663 420 1437 495 212 501 420 603 699 2052 3129 141 1440 270 375 77 548 3361 108 506 Hop 29 | . . . . . . . . . . 1 7 . 8 . . . . 12 . 1 Pick Up 148 | 7 18 4 18 5 . 1 8 3 3 46 15 2 4 1 . . . 12 1 . Fast Attach 53 | 7 2 . 2 . . . 2 4 . 6 5 . 3 . . . . 15 . 7 Attach 42 | . 1 . 6 . . 2 5 2 . 6 14 . 1 . . . . 4 1 . Detach 18 | . . . 3 . . . . . . 10 2 . 3 . . . . . . . Swap 88 | 2 13 1 19 4 . . 2 12 . 6 16 . 1 . . . 1 11 . . Drop 175 | . 12 6 25 4 . . 2 11 3 60 28 3 6 1 . . . 10 . 4 Fire 412 | 33 75 . 109 15 . 20 76 50 5 . 8 . 3 1 . . 10 6 . 1 Melee 206 | . 1 . . . . . . 1 . . 77 . 20 8 3 . . 90 . 6 Ram . | . . . . . . . . . . . . . . . . . . . . . Kick . | . . . . . . . . . . . . . . . . . . . . . Crush 29 | 1 3 3 9 2 . 2 2 2 5 . . . . . . . . . . . Escape Stasis 17 | . . . . . . . . . . . . . . . . . . 17 . . Rewire . | . . . . . . . . . . . . . . . . . . . . . Trap . | . . . . . . . . . . . . . . . . . . . . . Miscellaneous . | . . . . . . . . . . . . . . . . . . . . . Route ------- -11/Scrapyard -10/Materials (discovered 5 exits: *Mat x3 / *Min / [*Sub]) -10/Mines (discovered 2 exits: *Mat x2) -9/Materials (discovered 4 exits: *Mat x3 / *Min) -9/Mines (discovered 3 exits: *Mat x2 / *Exi) -9/Exiles -8/Mines (discovered 2 exits: *Mat x2) -8/Materials (discovered 3 exits: *Fac / *Sto x2) -8/Storage (discovered 2 exits: *Fac / *Rec) -8/Recycling (discovered 2 exits: Fac / *Scr) -8/Scraptown (discovered 2 exits: *Fac x2) -6/Factory (discovered 4 exits: *Fac x2 / *Low x2) -6/Waste -6/Factory (discovered 3 exits: *Fac / *Low x2) -6/Lower Caves -6/Lower Caves (discovered 2 exits: *Fac / *Dat) -6/Data Miner -5/Proximity Caves -5/Factory (discovered 5 exits: *Fac x3 / *Upp x2) -5/Waste -5/Factory History --------- Turn | Location | Event 19 | -11/Scrapyard | Discovered new exit (range 15) 238 | -11/Scrapyard | Entered Materials 317 | -10/Materials | Build established: Mutant 471 | -10/Materials | Discovered new exit (range 4) 650 | -10/Materials | Discovered new exit (range 13) 690 | -10/Materials | Core integrity fell below 50% 789 | -10/Materials | Repaired Lgt. Treads 1024 | -10/Materials | Discovered new exit (range 13) 1173 | -10/Materials | Discovered new exit (range 15) 1302 | -10/Materials | Discovered new exit (range 8) 1353 | -10/Materials | Learned 4 Subcaves zone layouts 1419 | -10/Materials | Learned 4 Recycling zone layouts 1450 | -10/Materials | Learned Materials emergency access door positions 1452 | -10/Materials | Learned location of Mines (-10) 1463 | -10/Materials | Loaded intel: 17 trap records 1650 | -10/Materials | Entered Mines 1703 | -10/Mines | Learned Materials security intel 1817 | -10/Mines | Found the Drone Emporium 1826 | -10/Mines | Found Prototype Device 2059 | -10/Mines | Discovered new exit (range 9) 2164 | -10/Mines | Met a Derelict shopkeep closing up shop 2332 | -10/Mines | Discovered new exit (range 6) 2333 | -10/Mines | Learned location of Storage (-8) 2340 | -10/Mines | Entered Materials 2340 | -9/Materials | Evolved 2 slots: Propulsion x1, Utility x1 2342 | -9/Materials | Identified Bomb Drone Bay 2982 | -9/Materials | Discovered new exit (range 13) 3357 | -9/Materials | Discovered new exit (range 13) 3714 | -9/Materials | Discovered new exit (range 15) 4209 | -9/Materials | Build established: Scavenger-Mutant 4358 | -9/Materials | Identified exit to Mines 4645 | -9/Materials | Learned Storage security intel 4702 | -9/Materials | Identified exit to Materials 4749 | -9/Materials | Learned 4 Recycling zone layouts 4788 | -9/Materials | Loaded intel: 18 interactive machine locations 4839 | -9/Materials | Learned Storage emergency access door positions 4865 | -9/Materials | Learned location of 1 exit from Recycling 4933 | -9/Materials | Build established: Mutant 4973 | -9/Materials | Learned Recycling recycling unit intel 5598 | -9/Materials | Entered Mines 5603 | -9/Mines | Assisted by bots powering up and referring to "LRC-V3" 5634 | -9/Mines | Learned Materials emergency access door positions 5651 | -9/Mines | Discovered exit to Materials (range 15) 5711 | -9/Mines | Deemed a non-threat by the Exiles lab entrance 5714 | -9/Mines | Discovered new exit (range 5) 5863 | -9/Mines | Learned location of 1 exit from Lower Caves 5902 | -9/Mines | Joined a pair of Derelicts in attacking an 0b10 outpost 6005 | -9/Mines | Received a Rocket Launcher from a helpful Derelict 6106 | -9/Mines | Discovered exit to Materials (range 11) 6860 | -9/Mines | Entered Exiles 6918 | -9/Exiles | Met 8R-AWN 6956 | -9/Exiles | Met EX-HEX 7033 | -9/Exiles | Met EX-BIN 7232 | -9/Exiles | Met EX-DEC 7242 | -9/Exiles | Learned location of Zion (-7) 7336 | -9/Exiles | Discovered new exit (range 14) 7369 | -9/Exiles | Entered Mines 7499 | -8/Mines | Discovered exit to Materials (range 13) 7612 | -8/Mines | Discovered exit to Materials (range 6) 7854 | -8/Mines | Core integrity fell below 50% 8632 | -8/Mines | Entered Materials 8632 | -8/Materials | Evolved 2 slots: Propulsion x1, Utility x1 8975 | -8/Materials | Identified exit to Storage 9105 | -8/Materials | Build established: Scavenger-Mutant 9383 | -8/Materials | Learned location of 1 exit from Recycling 9435 | -8/Materials | Learned location of 1 exit from Extension 9478 | -8/Materials | Identified exit to Factory 9510 | -8/Materials | Learned location of 1 exit from Lower Caves 9549 | -8/Materials | Learned Factory trap positions 9576 | -8/Materials | Learned Factory trap positions 9615 | -8/Materials | Learned location of 1 exit from Lower Caves 9886 | -8/Materials | Entered Storage 9932 | -8/Storage | Repaired Lgt. Treads 10005 | -8/Storage | Repaired Lgt. Treads 10685 | -8/Storage | Build established: Mutant 10689 | -8/Storage | Met 01-MTF 10792 | -8/Storage | Discovered exit to Factory (range 15) 11573 | -8/Storage | Discovered new exit (range 3) 11578 | -8/Storage | Entered Recycling 11578 | -8/Recycling | Accompanied by 1 ally (01-MTF) 11579 | -8/Recycling | Identified exit to Factory 11579 | -8/Recycling | Identified exit to Scraptown 11581 | -8/Recycling | Loaded intel: 7 recycling unit locations 11754 | -8/Recycling | Build established: Scavenger-Mutant 13112 | -8/Recycling | Scanned before Scraplab entrance 13154 | -8/Recycling | Entered Scraplab 13260 | -8/Recycling | Entered Scraptown 13540 | -8/Scraptown | Heard Great Nut preacher, LISTEN AND RECITE! 13623 | -8/Scraptown | Discovered exit to Factory (range 13) 13753 | -8/Scraptown | Visited Cyclists 13802 | -8/Scraptown | Visited CPS Storage 14138 | -8/Scraptown | Visited Fellowship of the Rings 14197 | -8/Scraptown | Visited Spacefarers 14279 | -8/Scraptown | Visited Cave Peace 14317 | -8/Scraptown | Visited SPCMW 14350 | -8/Scraptown | Visited Bundlers 14442 | -8/Scraptown | Visited UFD Registry 14442 | -8/Scraptown | Registered with UFD as "Protomod" 14532 | -8/Scraptown | Entered Cyclist Reading Room 14756 | -8/Scraptown | Visited Botcube Research 14794 | -8/Scraptown | Visited A0-MCA Data Center 14832 | -8/Scraptown | Visited Abandonware Association 14898 | -8/Scraptown | Learned abandonware demo "HACKBUD.EXE" 14898 | -8/Scraptown | Learned abandonware demo "KABOOM.EXE" 14957 | -8/Scraptown | Visited Science Testing Area 14978 | -8/Scraptown | Visited Observation Area 15009 | -8/Scraptown | Visited Scrap Suit Storage 15040 | -8/Scraptown | Visited Junk Repository 15120 | -8/Scraptown | Visited Curators Association 15198 | -8/Scraptown | Visited DA-N13 Charitable Foundation 15219 | -8/Scraptown | Found DCF Scrap (31 items) 15310 | -8/Scraptown | Visited Infowarlord's Domain 15380 | -8/Scraptown | Given an S rating by A0-MCA 15381 | -8/Scraptown | Found Prototype Processor 15383 | -8/Scraptown | Found A0-MCA's Component Scanner 15601 | -8/Scraptown | Found Exp. Signal Interpreter 16325 | -8/Scraptown | Found Lrg. Botcube 16577 | -8/Scraptown | Build established: Hacker-Mutant 17665 | -8/Scraptown | Lrg. Botcube activated 17699 | -8/Scraptown | Lrg. Botcube completed mutation into treaded form, armed with 4 guns. 17840 | -8/Scraptown | Met Optimus 17840 | -8/Scraptown | Accepted into 0bPrime 17993 | -8/Scraptown | Discovered exit to Factory (range 3) 18000 | -8/Scraptown | Entered Factory 18000 | -6/Factory | Accompanied by 1 ally 18000 | -6/Factory | Evolved 4 slots: Propulsion x1, Utility x3 18001 | -6/Factory | Identified exit to Lower Caves 18002 | -6/Factory | Loaded intel: 140 trap records 18027 | -6/Factory | Identified Expert System 18063 | -6/Factory | Loaded intel: 8 recycling unit locations 18105 | -6/Factory | Discovered new exit (range 12) 18158 | -6/Factory | Identified exit to Factory 18291 | -6/Factory | Spotted B-75 Beast 18354 | -6/Factory | Repaired Imp. Light Armor Plating? 18358 | -6/Factory | Build established: Hacker-Scout 18461 | -6/Factory | Learned location of Protoforge (-2) 18514 | -6/Factory | Fabricated Cld. VTOL Module (x1) 18813 | -6/Factory | Discovered exit to Factory (range 7) 18911 | -6/Factory | Fabricated Biomechanical Wings (x1) 19231 | -6/Factory | Manually triggered Chute Trap 19231 | -6/Factory | Sucked down chute 19231 | -6/Factory | Entered Waste 19237 | -6/Waste | Spotted C-40 Crusher 19247 | -6/Waste | Spotted C-40 Crusher 19247 | -6/Waste | Spotted C-40 Crusher 19249 | -6/Waste | Spotted C-40 Crusher 19262 | -6/Waste | Spotted C-40 Crusher 19264 | -6/Waste | Discovered new exit (range 12) 19264 | -6/Waste | Spotted C-40 Crusher 19268 | -6/Waste | Identified exit to Factory 19271 | -6/Waste | Entered Factory 19272 | -6/Factory | Loaded intel: 87 trap records 19334 | -6/Factory | Discovered exit to Factory (range 16) 19457 | -6/Factory | Loaded intel: 8 recycling unit locations 19507 | -6/Factory | Discovered exit to Lower Caves (range 8) 19530 | -6/Factory | Hacking Suite fried by hacking feedback 19599 | -6/Factory | Repaired Broken Impulse Thruster Array? 19631 | -6/Factory | Discovered exit to Lower Caves (range 8) 19732 | -6/Factory | Entered Lower Caves 19733 | -6/Lower Caves | Identified exit to Lower Caves 19744 | -6/Lower Caves | Learned Factory terminal intel 19832 | -6/Lower Caves | Entered another Lower Caves area 19833 | -6/Lower Caves | Encountered a Warlord checkpoint 19833 | -6/Lower Caves | Identified exit to Data Miner 19879 | -6/Lower Caves | Learned location of 1 exit from Factory 19954 | -6/Lower Caves | Entered Data Miner 19954 | -6/Data Miner | Discovered new exit (range 7) 19960 | -6/Data Miner | Met Data Miner 19967 | -6/Data Miner | Learned location of Section 7 (-2) 19967 | -6/Data Miner | Acquired the access code to Warlord's prototype stash 19970 | -6/Data Miner | Received God Mode back door access code from Data Miner 19976 | -6/Data Miner | Identified exit to Proximity Caves 19976 | -6/Data Miner | Entered Proximity Caves 20010 | -5/Proximity Caves | Learned 8 Factory zone layouts 20150 | -5/Proximity Caves | Discovered exit to Factory (range 16) 20157 | -5/Proximity Caves | Entered Factory 20157 | -5/Factory | Evolved 2 slots: Utility x2 20158 | -5/Factory | Identified exit to Upper Caves 20160 | -5/Factory | Loaded intel: 26 terminal locations 20168 | -5/Factory | Destroyed 7 combat bots 20384 | -5/Factory | Loaded intel: 8 recycling unit locations 20412 | -5/Factory | Discovered new exit (range 5) 20427 | -5/Factory | Repaired Lyr. Light Armor Plating 20552 | -5/Factory | Discovered new exit (range 8) 20554 | -5/Factory | Identified exit to Factory 20568 | -5/Factory | Fabricated Mic. Fission Core? 20571 | -5/Factory | Learned 2 Armory zone layouts 20624 | -5/Factory | Learned 4 Research zone layouts 20659 | -5/Factory | Found Prototype Processor 20661 | -5/Factory | Identified Exp. Targeting Computer 20669 | -5/Factory | Learned Armory trap positions 20704 | -5/Factory | Learned 2 Proximity Caves zone layouts 20728 | -5/Factory | Learned Testing scanalyzer intel 20742 | -5/Factory | Learned 2 Proximity Caves zone layouts 20766 | -5/Factory | Learned 4 Proximity Caves zone layouts 20799 | -5/Factory | Learned Quarantine non-interactive machine intel 20844 | -5/Factory | Learned Extension terminal intel 20903 | -5/Factory | Spotted B-75 Beast 21278 | -5/Factory | Build established: Hacker-Ninja 21410 | -5/Factory | Discovered exit to Upper Caves (range 10) 21415 | -5/Factory | Discovered exit to Factory (range 18) 21464 | -5/Factory | Fabricated Lgt. Regenerative Plating? 21476 | -5/Factory | Repaired Cold Fusion Reactor 21503 | -5/Factory | Repaired Adv. Sensor Array 21657 | -5/Factory | First assault squad dispatched 21759 | -5/Factory | Sucked down chute 21759 | -5/Factory | Entered Waste 21760 | -5/Waste | Met a frightened Derelict 21761 | -5/Waste | Spotted C-40 Crusher 21773 | -5/Waste | Spotted C-40 Crusher 21774 | -5/Waste | EMP discharged 21774 | -5/Waste | System corruption reached 10% 21778 | -5/Waste | Spotted C-40 Crusher 21778 | -5/Waste | Spotted C-40 Crusher 21789 | -5/Waste | Spotted C-40 Crusher 21789 | -5/Waste | Spotted C-40 Crusher 21796 | -5/Waste | Discovered new exit (range 11) 21799 | -5/Waste | Identified exit to Factory 21799 | -5/Waste | Entered Factory 21950 | -5/Factory | Loaded intel: 8 recycling unit locations 21984 | -5/Factory | Spotted B-75 Beast 22102 | -5/Factory | Core integrity fell below 50% 22104 | -5/Factory | Lost 9 parts (1p3n5u) 22120 | -5/Factory | Core integrity fell below 20% 22126 | -5/Factory | Destroyed by P-70 Sage with Tesla Rifle Last Messages --------------- 22084_ U-05 Engineer lays Concrete. 22084_ K-01 Serf collects debris. 22086_ U-05 Engineer builds a Wall. 22088_ K-01 Serf collects debris. 22090_ U-05 Engineer lays Concrete. 22090_ U-05 Engineer builds a Wall. 22096_ U-05 Engineer lays Concrete. 22099_ U-05 Engineer builds a Wall. 22103_ Dropped Power Sword. 22104_ U-05 Engineer builds a Wall. 22109_ U-05 Engineer lays Concrete. 22111_ Cld. Cesium-ion Thruster destroyed. 22111_ U-05 Engineer lays Concrete. 22113_ M-28 Smith repairs U-05 Engineer Unknown Wheel. 22113_ P-70 Sage resets U-05 Engineer, system corruption cleaned. 22114_ System corrupted: Energy discharge (-37). 22115_ P-70 Sage resets P-70 Sage, system corruption cleaned. Map ----- +----------------------------------------------------+ | ######## ###### ##???????????????????????????????? | | ##???????????????????????????????? | | ###### ############ ??????????????????????????? | | #### ############ ??????????????????????????? | | ????## # # ??????????????????????????? | | ???### # # ??????????????????????????? | | ???### # # ?? ???????????????????????? | | ???## / # ?? ???????????????????????? | | ???##T # # ?? ???????????????????????? | | ???### # # ??"???????????????????????? | | ?"#### # # ????????????????????? | | ? #### ###############+###????????????????????? | | ? # ??????????????????? | | ? # ??????????????????? | | ? # ??????????????????? | | ? # ??????????????????? | | ? # ????????????????? | | ? # #################+#######????????????????? | | ? # ############## ##????????????????? | | ?## ##?######??### m ##????????????????? | | ### ############## % ! ##????????????????? | | ### ##### #### % " ##????????????????? | | #^ # s "" ##????????????????? | | # """ !#% s R" ##????????????????? | | [ # "R # = "" ##????????????????? | | ! #=""" # @= ##????????????????? | | # "" ##/ ########????????????????? | | # ##p # ####????????????????? | | """"" % # p# # ###?????????????????? | | %* ## #######??????????????????? | | """"" # ! """ + #######??????????????????? | | # """ #####???????????????????????? | | """"" % "" """ #####???????????????????????? | | ##??????????????????????????? | | ###########/###??????????????????????????? | | ########### # ??????????????????????????? | | ##???????## # ???????????????????????????? | | "# # ???????## # ???????????????????????????? | | ## # ???????## + ???????????????????????????? | | ### # ???????## # ???????????????????????????? | | ### # ???????## # ???????????????????????????? | | ?## # ???????## ##???????????????????????????? | | ?## # ???????## ##???????????????????????????? | | ?## + ???????## ##???????????????????????????? | | ? # # ????????? ?????????????????????????????? | | ? # ??????????? ?????????????????????????????? | | ? # ??????????? ?????????????????????????????? | | ? # ??????????? ?????????????????????????????? | | ? # ? ??????????? ?????????????????????????????? | | ??????????????????? ?????????????????????????????? | +----------------------------------------------------+ Best States ------------- Heat Dissipation 53 Energy Generation 18 Energy Capacity 280 Matter Stores 300 Matter Capacity 300 Sight Range 22 Robot Scan Range 16 Terrain Scan Density 10 ECM Strength 1 Armor Coverage 225 Resistance: KI 30 Evasion (%) 65 Targeting Accuracy 12 Recoil Reduction 4 Matter Filtering 50 Offensive Hacking 26 Defensive Hacking 14 Authchip Count 3 Item Schematics ----------------- Adv. Sensor Array | -8/Storage | Hacked Imp. Medium Treads | -8/Recycling | Hacked Hvy. Ion Cannon | -8/Recycling | Hacked Coolant Injector | -8/Recycling | Hacked Cld. VTOL Module | -6/Factory | Hacked Biomechanical Wings | -6/Factory | Scanalyzed Mic. Fission Core | -6/Factory | Hacked Imp. System Shield | -6/Factory | Hacked Adv. Reaction Control System | -6/Factory | Hacked Quantum Capacitor | -6/Factory | Hacked Matter Neutralizer | -6/Factory | Hacked Variable Charge Gun | -6/Factory | Hacked Combat Drone Bay | -6/Data Miner | Free Lgt. Regenerative Plating | -6/Data Miner | Free Cld. Gravmag System | -6/Data Miner | Free Imp. Energy Well | -6/Data Miner | Free Imp. KE Penetrator | -6/Data Miner | Free Myomer Leg | -6/Data Miner | Free Adv. Cryofiber Web | -6/Data Miner | Free Exp. Utility Shielding | -5/Factory | Hacked Exp. Propulsion Shielding | -5/Factory | Hacked Adv. Power Amplifier | -5/Factory | Hacked Exp. Targeting Computer | -5/Factory | Scanalyzed Robot Schematics ------------------ I-47 Archangel | -6/Data Miner | Free R-10 Processor | -6/Data Miner | Free H-66 Slayer | -6/Data Miner | Free S-27 Virus | -6/Data Miner | Free G-67 Veteran | -6/Data Miner | Free B-60 Warrior | -5/Factory | Hacked Fabricated ------------ Cld. VTOL Module | x1 | -6/Factory | Authchip Biomechanical Wings | x1 | -6/Factory | Authchip Mic. Fission Core | x2 | -5/Factory | Authchip Lgt. Regenerative Plating | x1 | -5/Factory | Authchip Repaired ---------- Lgt. Treads | 62% | -10/Materials Lgt. Treads | 17% | -8/Storage Lgt. Treads | 40% | -8/Storage Imp. Light Armor Plating | 53% | -6/Factory Impulse Thruster Array | 10% | -6/Factory | Broken Lyr. Light Armor Plating | 69% | -5/Factory Cold Fusion Reactor | 4% | -5/Factory Adv. Sensor Array | 12% | -5/Factory Alien Tech Used ----------------- None Achievements -------------- None Challenges ------------ None Game ------ Seed SupersonicGuidedStreamer Manual? 0 Play Time 02:35:07 Cumulative 144.8 hours Start 2025.09.17 @ 16:13:01 End 2025.09.17 @ 21:14:47 Sessions 5 Manual Loads 0 Difficulty Rogue Special Mode None Game No. 124 Rogue 124 Adventurer 0 Explorer 0 Win Type - Total 4 Types 3/0/1/0/0/0/0/0/0/0 Lore% 71 Gallery% 63 Achievement% 59 Wizard Run 0 Options --------- Layout 1 ASCII 0 Keyboard 1 Movement Arrows Keybinds 0 Fullscreen 1 Font 24/Smallcaps Map View 50x40 Zoom Use 0% Tactical HUD 1 Map Filters NONE Filters NONE Steam 1 RUN: bbb04521-3ab8-4bd6-bbe1-87d53c9e6a43